[Event "ISR-ch Youth 2019"]
[Site "Jerusalem"]
[Date "2019.04.15"]
[Round "6.5"]
[White "Cohen, Elad"]
[Black "Uritsky, Yonathan"]
[Result "1/2-1/2"]
[ECO "B33"]
[WhiteElo "1828"]
[BlackElo "1899"]
[Annotator "NA RC"]
[PlyCount "147"]
[EventDate "2019.04.11"]
[EventType "swiss"]
[EventCountry "ISR"]
[SourceTitle "playchess.com"]
[Source "ChessBase"]
[SourceQuality "1"]
[TimeControl "5400+30"]

{[%evp 8,146,37,19,33,21,42,33,33,18,25,54,55,6,8,25,30,-2,2,32767,32767,32767,8,32767,32767,8,32767,32767,32767,-6,-16,-20,6,-8,0,0,22,11,38,37,54,45,41,44,66,13,13,8,31,34,42,31,84,82,78,83,66,80,89,72,66,50,120,63,63,57,84,53,73,74,75,36,34,0,0,0,32767,32767,0,32767,32767,0,0,0,0,0,0,32767,32767,0,0,0,32767,80,32767,32767,32767,32767,32767,32767,32767,32767,32767,32767,32767,32767,32767,32767,27,34,32767,32767,26,32767,32767,32767,32767,32767,32767,34,32767,45,32767,32767,32767,32767,32767,0,32767,0,32767,32767,32767,32767,0,0,0,0,0,0,0]} 1. e4 {[%emt 0:00:00]} c5 {[%emt 0:00:00]} 2. Nf3 {[%emt 0:00:00]} Nc6 {[%emt 0:00:10]} 3. d4 {[%emt 0:00:00]} cxd4 {[%emt 0:00:13]} 4. Nxd4 {[%emt 0:00:18]} Nf6 {[%emt 0:00:18]} 5. Nc3 {[%emt 0:00:24]} e6 {[%emt 0:00:10]} 6. Ndb5 {[%emt 0:00:25]} d6 {[%emt 0:00:16]} 7. Bf4 {[%emt 0:00:11]} e5 {[%emt 0:00:12]} 8. Bg5 {[%emt 0:00:06]} a6 {[%emt 0:00:10]} 9. Na3 {[%emt 0:00:19]} b5 {[%emt 0:00:19]} 10. Nd5 {[%emt 0:00:14]} Be7 {[%emt 0:00:12]} 11. Bxf6 {[%emt 0:00:27] LiveBook: 6538 Games} Bxf6 {[%emt 0:00:13]} 12. c4 {[%emt 0:00:08]} b4 {[%emt 0:00:20]} 13. Nc2 {[%emt 0:00:11]} a5 {[%emt 0:00:15]} 14. g3 {[%emt 0:00:06] B33: Sicilian: Pelikan and Sveshnikov Variations} O-O {[%emt 0:00:42]} 15. Bg2 {[%emt 0:00:14]} Bg5 {[%emt 0:01:08]} 16. O-O {[%emt 0:00:49]} Ne7 {[%emt 0:01:48]} 17. Nce3 {[%emt 0:00:58]} Be6 {[%emt 0:03:58] [#]} 18. h4 $146 {[%emt 0:07:43]} ({Predecessor:} 18. Qd3 Nxd5 19. Nxd5 Qb8 20. Rad1 a4 21. b3 axb3 22. axb3 {½-½ (97) Persson,C (2577)-Voll,A (2557) ICCF email 2012}) 18... Bxe3 {[%emt 0:04:56]} 19. Nxe3 {[%emt 0:00:38]} Rc8 {[%emt 0:00:42]} 20. Rc1 {[%emt 0:07:07]} Nc6 {[%emt 0:01:48]} 21. b3 {[%emt 0:00:22]} Nd4 {[%emt 0:01:46]} 22. Nc2 {[%emt 0:00:56]} Nxc2 {[%emt 0:01:55]} 23. Rxc2 {[%emt 0:01:56]} Qb6 {[%emt 0:02:46]} 24. Rd2 {[%emt 0:04:19]} Rcd8 {[%emt 0:09:20]} 25. Qe2 {[%emt 0:04:35]} Kh8 {[%emt 0:02:31]} 26. Qe3 {[%emt 0:01:40]} Qxe3 {[%emt 0:17:16]} 27. fxe3 {[%emt 0:00:05]} Rd7 {[%emt 0:00:08]} 28. Kh2 {[%emt 0:03:54]} Kg8 {[%emt 0:11:36]} 29. Bh3 {[%emt 0:09:35]} Bxh3 {[%emt 0:00:46]} (29... Rfd8 $11 {remains equal.}) 30. Kxh3 {[%emt 0:00:13]} Ra8 {[%emt 0:00:31]} 31. Rfd1 {[%emt 0:04:41]} Ra6 $1 {[%emt 0:00:51]} 32. c5 {[%emt 0:01:17]} f6 {[%emt 0:00:17]} 33. Rxd6 {[%emt 0:01:06]} Raxd6 {[%emt 0:01:04]} 34. cxd6 {[%emt 0:00:09]} ({Don't play} 34. Rxd6 Rxd6 35. cxd6 Kf7 $11) 34... Kf7 {[%emt 0:00:26] [#]} ({Black should play} 34... h5 $14) 35. Kg4 {[%emt 0:03:57]} (35. h5 $1 $16) 35... Ke6 {[%emt 0:03:58]} 36. Rd5 {[%emt 0:00:20]} Rxd6 {[%emt 0:03:16]} 37. Rxa5 {[%emt 0:00:35]} g6 {[%emt 0:01:14]} 38. Ra4 {[%emt 0:03:17]} Rd2 {[%emt 0:05:20]} 39. h5 {[%emt 0:01:40]} Rh2 {[%emt 0:03:40]} 40. h6 {[%emt 0:02:58]} Rxh6 {[%emt 0:08:31]} 41. Rxb4 {[%emt 0:00:05]} Rh2 {[%emt 0:00:15]} 42. a4 {[%emt 0:00:38]} h5+ {[%emt 0:00:34]} 43. Kf3 {[%emt 0:00:15]} g5 {[%emt 0:00:44]} 44. g4 {[%emt 0:02:26]} h4 $1 {[%emt 0:02:17]} 45. a5 {[%emt 0:07:52]} Ra2 {[%emt 0:00:26]} 46. Rb6+ {[%emt 0:01:17]} Kf7 {[%emt 0:00:32]} 47. b4 {[%emt 0:03:03]} h3 {[%emt 0:01:21]} 48. Rc6 {[%emt 0:01:53]} h2 {[%emt 0:01:21]} 49. Rc1 {[%emt 0:00:37]} Ra4 {[%emt 0:00:47]} 50. Rh1 {[%emt 0:01:04]} Rxb4 {[%emt 0:00:12]} 51. Rxh2 {[%emt 0:00:08]} Ra4 {[%emt 0:02:15]} 52. Rh7+ {[%emt 0:00:09]} Kg6 {[%emt 0:01:29]} 53. Ra7 {[%emt 0:00:04]} Ra2 {[%emt 0:00:03]} 54. a6 {[%emt 0:01:51]} Kh6 {[%emt 0:00:07]} 55. Ra8 {[%emt 0:00:08]} Kh7 {[%emt 0:00:22]} 56. a7 {[%emt 0:00:51]} Kg7 {[%emt 0:00:06]} 57. Kg3 {[%emt 0:00:15]} Kh7 $1 {[%emt 0:00:38]} 58. Rf8 {[%emt 0:00:29]} Rxa7 {[%emt 0:00:14]} 59. Rxf6 {[%emt 0:00:05]} Ra5 {[%emt 0:00:48]} 60. Kf3 {[%emt 0:01:01]} Kg7 {[%emt 0:00:21]} 61. Rd6 {[%emt 0:00:44]} Ra2 {[%emt 0:00:51]} 62. Re6 {[%emt 0:00:49]} Ra5 {[%emt 0:00:03]} 63. Ke2 {[%emt 0:00:06]} Kf7 {[%emt 0:00:26]} 64. Rd6 {[%emt 0:00:33]} Ra2+ {[%emt 0:02:31]} 65. Rd2 {[%emt 0:00:16]} Ra6 {[%emt 0:00:16]} 66. Kd3 {[%emt 0:02:02]} Ra3+ {[%emt 0:00:11]} 67. Kc4 {[%emt 0:01:13]} Ke6 {[%emt 0:01:33]} 68. Rb2 {[%emt 0:01:13]} Rxe3 {[%emt 0:03:17]} 69. Rb6+ {[%emt 0:00:07]} Kf7 {[%emt 0:00:36]} 70. Kd5 {[%emt 0:00:06]} Rg3 {[%emt 0:00:15]} 71. Kxe5 {[%emt 0:00:14]} Rxg4 {[%emt 0:00:12]} 72. Rb7+ {[%emt 0:00:20]} Kg6 {[%emt 0:01:15]} 73. Kd5 {[%emt 0:00:37]} Rg1 $11 {[%emt 0:00:09]} 74. e5 {[%emt 0:00:38]} 1/2-1/2

[Event "ISR-ch Youth 2019"]
[Site "Jerusalem"]
[Date "2019.04.15"]
[Round "6.7"]
[White "Ribstein, Orel"]
[Black "Kinberg, Raz"]
[Result "1-0"]
[ECO "A60"]
[WhiteElo "1708"]
[BlackElo "1441"]
[Annotator "NA RC"]
[PlyCount "109"]
[EventDate "2019.04.11"]
[EventType "swiss"]
[EventCountry "ISR"]
[SourceTitle "playchess.com"]
[Source "ChessBase"]
[SourceQuality "1"]
[TimeControl "5400+30"]

1. d4 {[%emt 0:00:00]} Nf6 {[%emt 0:00:00]} 2. c4 {[%emt 0:00:00]} e6 {[%emt 0:00:00]} 3. g3 {[%emt 0:00:00]} c5 {[%emt 0:00:22]} 4. d5 {[%emt 0:00:07]} exd5 {[%emt 0:00:09]} 5. cxd5 {[%emt 0:00:09]} b5 {[%emt 0:00:09]} 6. Bg2 {[%emt 0:01:09]} d6 {[%emt 0:00:32]} 7. Nd2 {[%emt 0:01:13]} g6 {[%emt 0:00:44]} 8. a4 {[%emt 0:00:39]} b4 {[%emt 0:00:14]} 9. Nc4 {[%emt 0:06:01]} Ba6 {[%emt 0:02:55]} 10. Qc2 {[%emt 0:01:56]} Bxc4 {[%emt 0:01:29]} 11. Qxc4 {[%emt 0:00:08]} Bg7 {[%emt 0:01:49]} 12. e4 {[%emt 0:06:40]} O-O {[%emt 0:02:31]} 13. Ne2 {[%emt 0:02:30]} Nbd7 {[%emt 0:01:45]} 14. O-O {[%emt 0:03:59]} Re8 {[%emt 0:04:42]} 15. Re1 {[%emt 0:03:52]} Qc7 {[%emt 0:04:23]} 16. Bd2 {[%emt 0:02:42]} a5 {[%emt 0:02:25]} 17. Rac1 {[%emt 0:12:52]} Nb6 {[%emt 0:09:29]} 18. Qc2 {[%emt 0:00:33]} Qd7 {[%emt 0:00:52]} 19. b3 {[%emt 0:55:00]} Re7 {[%emt 0:06:51]} 20. Nf4 {[%emt 0:00:00]} Qe8 {[%emt 0:02:20]} 21. f3 {[%emt 0:00:00]} Raa7 {[%emt 0:01:51]} 22. Bf1 {[%emt 0:00:00]} Nfd7 {[%emt 0:04:16]} 23. Bb5 {[%emt 0:00:00]} Qd8 {[%emt 0:01:58]} 24. Nd3 {[%emt 0:00:00]} Ne5 {[%emt 0:07:07]} 25. Nxe5 {[%emt 0:00:00]} Bxe5 {[%emt 0:01:48]} 26. Bg5 {[%emt 0:00:00]} f6 {[%emt 0:00:25]} 27. Bf4 {[%emt 0:00:00]} Nd7 {[%emt 0:02:24]} 28. Bxe5 {[%emt 0:00:00]} fxe5 {[%emt 0:00:19]} 29. Rf1 {[%emt 0:00:00]} Rf7 {[%emt 0:02:08]} 30. Rf2 {[%emt 0:00:00]} Qg5 {[%emt 0:04:37]} 31. Rcf1 {[%emt 0:00:00]} Nb6 {[%emt 0:04:11]} 32. Kh1 {[%emt 0:00:00]} Qe7 {[%emt 0:04:15]} 33. Be2 {[%emt 0:00:00]} Kg7 {[%emt 0:01:09]} 34. Bb5 {[%emt 0:00:00]} Kg8 {[%emt 0:00:34]} 35. Be2 {[%emt 0:00:05]} Kg7 {[%emt 0:00:10]} 36. f4 {[%emt 0:01:46]} Qe8 {[%emt 0:01:23]} 37. f5 {[%emt 0:00:42]} Qf8 {[%emt 0:01:35]} 38. g4 {[%emt 0:00:54]} Qg8 {[%emt 0:04:13]} 39. Qc1 {[%emt 0:03:08]} Kh8 {[%emt 0:01:09]} 40. Qh6 {[%emt 0:01:02]} Qg7 {[%emt 0:00:18]} 41. Qh4 {[%emt 0:00:40]} g5 {[%emt 0:01:54]} 42. Qg3 {[%emt 0:00:20]} Qh6 {[%emt 0:00:25]} 43. h3 {[%emt 0:00:17]} Rf6 {[%emt 0:01:13]} 44. Rh2 {[%emt 0:01:23]} Qg7 {[%emt 0:00:14]} 45. Rff2 {[%emt 0:00:17]} Nd7 {[%emt 0:00:22]} 46. Bb5 {[%emt 0:00:34]} Nf8 {[%emt 0:00:12]} 47. h4 {[%emt 0:00:25]} Re7 {[%emt 0:00:19]} 48. hxg5 {[%emt 0:00:43]} Qxg5 {[%emt 0:00:06]} 49. Rh5 {[%emt 0:00:19]} Qg8 {[%emt 0:00:26]} 50. Qh4 {[%emt 0:00:44]} Rff7 {[%emt 0:00:21]} 51. g5 {[%emt 0:00:56]} Ra7 {[%emt 0:00:22]} 52. Rg2 {[%emt 0:00:36]} Rac7 {[%emt 0:00:07]} 53. g6 {[%emt 0:00:46]} Rg7 {[%emt 0:00:09]} 54. Rgg5 {[%emt 0:00:43]} Ra7 {[%emt 0:00:07]} 55. Be8 {[%emt 0:00:23]} 1-0

[Event "ISR-ch Youth 2019"]
[Site "Jerusalem"]
[Date "2019.04.15"]
[Round "6.8"]
[White "Dezent, Eyal"]
[Black "Blumenthal, Michael"]
[Result "0-1"]
[ECO "A06"]
[WhiteElo "1300"]
[BlackElo "1277"]
[Annotator "NA RC"]
[PlyCount "54"]
[EventDate "2019.04.11"]
[EventType "swiss"]
[EventCountry "ISR"]
[SourceTitle "playchess.com"]
[Source "ChessBase"]
[SourceQuality "1"]
[TimeControl "5400+30"]

1. d4 {[%emt 0:00:00]} Nf6 {[%emt 0:00:00]} 2. Nf3 {[%emt 0:00:00]} d5 {[%emt 0:00:00]} 3. e3 {[%emt 0:00:00]} c5 {[%emt 0:00:00]} 4. b3 {[%emt 0:00:20]} Nc6 {[%emt 0:00:19]} 5. Bb2 {[%emt 0:00:33]} Bg4 {[%emt 0:00:23]} 6. Be2 {[%emt 0:00:51]} e6 {[%emt 0:00:38]} 7. O-O {[%emt 0:00:18]} Bd6 {[%emt 0:00:42]} 8. Nbd2 {[%emt 0:00:24]} O-O {[%emt 0:00:48]} 9. Ne5 {[%emt 0:00:43]} Bxe2 {[%emt 0:05:57]} 10. Qxe2 {[%emt 0:00:11]} Rc8 {[%emt 0:02:50]} 11. c4 {[%emt 0:05:21]} Qe7 {[%emt 0:01:46]} 12. f4 {[%emt 0:04:25]} Rfd8 {[%emt 0:01:45]} 13. cxd5 {[%emt 0:02:23]} exd5 {[%emt 0:03:37]} 14. g4 {[%emt 0:05:30]} Nd7 {[%emt 0:09:56]} 15. g5 {[%emt 0:06:30]} cxd4 {[%emt 0:07:53]} 16. Nxc6 {[%emt 0:05:05]} Rxc6 {[%emt 0:02:03]} 17. Bxd4 {[%emt 0:00:23]} Rc2 {[%emt 0:01:38]} 18. Qd3 {[%emt 0:08:33]} Rc6 {[%emt 0:02:43]} 19. h4 {[%emt 0:05:19]} Nc5 {[%emt 0:04:18]} 20. Qe2 {[%emt 0:01:29]} Ne6 {[%emt 0:52:44]} 21. Qg2 {[%emt 0:01:50]} Nxd4 {[%emt 0:00:00]} 22. exd4 {[%emt 0:00:32]} Qe3+ {[%emt 0:00:00]} 23. Qf2 {[%emt 0:01:57]} Bxf4 {[%emt 0:00:00]} 24. Rae1 {[%emt 0:03:17]} Qxf2+ {[%emt 0:00:00]} 25. Rxf2 {[%emt 0:00:08]} Bg3 {[%emt 0:00:00]} 26. Rfe2 {[%emt 0:01:25]} Bxe1 {[%emt 0:00:00]} 27. Rxe1 {[%emt 0:00:24]} Rc2 {[%emt 0:00:00]} 0-1

[Event "ISR-ch Youth 2019"]
[Site "Jerusalem"]
[Date "2019.04.15"]
[Round "6.9"]
[White "Levin, Emily"]
[Black "Sadka Darrell, Daria"]
[Result "0-1"]
[ECO "E71"]
[WhiteElo "1545"]
[BlackElo "1451"]
[Annotator "NA RC"]
[PlyCount "68"]
[EventDate "2019.04.11"]
[EventType "swiss"]
[EventCountry "ISR"]
[SourceTitle "playchess.com"]
[Source "ChessBase"]
[SourceQuality "1"]
[TimeControl "5400+30"]

1. d4 {[%emt 0:00:00]} Nf6 {[%emt 0:00:45]} 2. c4 {[%emt 0:00:25]} g6 {[%emt 0:00:41]} 3. Nc3 {[%emt 0:01:39]} Bg7 {[%emt 0:02:23]} 4. e4 {[%emt 0:01:47]} d6 {[%emt 0:01:10]} 5. h3 {[%emt 0:02:15]} Nbd7 {[%emt 0:03:12]} 6. Be3 {[%emt 0:03:36]} b6 {[%emt 0:03:21]} 7. Nf3 {[%emt 0:02:13]} O-O {[%emt 0:00:54]} 8. Be2 {[%emt 0:01:17]} e5 {[%emt 0:02:09]} 9. d5 {[%emt 0:03:41]} Nc5 {[%emt 0:01:30]} 10. Bxc5 {[%emt 0:09:35]} bxc5 {[%emt 0:00:44]} 11. Nd2 {[%emt 0:01:21]} Ne8 {[%emt 0:04:17]} 12. O-O {[%emt 0:02:54]} f5 {[%emt 0:05:27]} 13. exf5 {[%emt 0:09:57]} gxf5 {[%emt 0:01:30]} 14. f3 {[%emt 0:09:56]} Qg5 {[%emt 0:02:34]} 15. Qc1 {[%emt 0:05:32]} Bh6 {[%emt 0:09:36]} 16. f4 {[%emt 0:05:38]} Qg6 {[%emt 0:01:09]} 17. Qe1 {[%emt 0:04:18]} Kh8 {[%emt 0:09:57]} 18. Qf2 {[%emt 0:08:18]} Rg8 {[%emt 0:05:56]} 19. Bd1 {[%emt 0:04:38]} Bxf4 {[%emt 0:02:32]} 20. Kh1 {[%emt 0:03:27]} Nf6 {[%emt 0:11:31]} 21. Rg1 {[%emt 0:05:59]} Qh6 {[%emt 0:03:47]} 22. Nf1 {[%emt 0:00:31]} Bg5 {[%emt 0:04:26]} 23. Bc2 {[%emt 0:01:46]} Bh4 {[%emt 0:04:07]} 24. Qe2 {[%emt 0:01:45]} Ng4 {[%emt 0:02:16]} 25. Nd1 {[%emt 0:00:28]} Rb8 {[%emt 0:02:29]} 26. g3 {[%emt 0:01:41]} Bg5 {[%emt 0:01:34]} 27. Kg2 {[%emt 0:00:25]} Nf6 {[%emt 0:00:31]} 28. Nh2 {[%emt 0:01:21]} Bh4 {[%emt 0:02:22]} 29. Nf1 {[%emt 0:03:34]} f4 {[%emt 0:02:25]} 30. Rh1 {[%emt 0:00:52]} Bxg3 {[%emt 0:01:03]} 31. Nxg3 {[%emt 0:00:56]} Rxg3+ {[%emt 0:00:12]} 32. Kf1 {[%emt 0:00:39]} Rxh3 {[%emt 0:02:09]} 33. Rxh3 {[%emt 0:00:26]} Bxh3+ {[%emt 0:00:02]} 34. Ke1 {[%emt 0:00:10]} Rg8 {[%emt 0:08:19]} 0-1

[Event "ISR-ch Youth 2019"]
[Site "Jerusalem"]
[Date "2019.04.15"]
[Round "6.11"]
[White "Orian, Noga"]
[Black "Gadasi, Noam"]
[Result "0-1"]
[ECO "A58"]
[WhiteElo "1502"]
[BlackElo "1653"]
[Annotator "NA RC"]
[PlyCount "144"]
[EventDate "2019.04.11"]
[EventType "swiss"]
[EventCountry "ISR"]
[SourceTitle "playchess.com"]
[Source "ChessBase"]
[SourceQuality "1"]
[TimeControl "5400+30"]

1. d4 {[%emt 0:00:00]} Nf6 {[%emt 0:00:00]} 2. c4 {[%emt 0:00:00]} c5 {[%emt 0:00:00]} 3. d5 {[%emt 0:00:00]} b5 {[%emt 0:00:00]} 4. cxb5 {[%emt 0:01:23]} a6 {[%emt 0:00:05]} 5. bxa6 {[%emt 0:01:08]} Bxa6 {[%emt 0:00:13]} 6. Nc3 {[%emt 0:00:48]} d6 {[%emt 0:00:23]} 7. Nf3 {[%emt 0:01:34]} g6 {[%emt 0:00:23]} 8. g3 {[%emt 0:04:37]} Bg7 {[%emt 0:00:09]} 9. Bg2 {[%emt 0:00:08]} O-O {[%emt 0:00:09]} 10. O-O {[%emt 0:00:49]} Nbd7 {[%emt 0:00:12]} 11. Re1 {[%emt 0:08:37]} Ng4 {[%emt 0:00:57]} 12. h3 {[%emt 0:05:12]} Nge5 {[%emt 0:00:32]} 13. e4 {[%emt 0:01:24]} Qa5 {[%emt 0:01:14]} 14. Bf1 {[%emt 0:07:50]} Bxf1 {[%emt 0:03:22]} 15. Kxf1 {[%emt 0:03:04]} Nc4 {[%emt 0:02:31]} 16. Qd3 {[%emt 0:06:57]} Qa6 {[%emt 0:02:55]} 17. Kg2 {[%emt 0:01:08]} Rfb8 {[%emt 0:01:19]} 18. b3 {[%emt 0:03:24]} Nce5 {[%emt 0:01:49]} 19. Qxa6 {[%emt 0:03:27]} Rxa6 {[%emt 0:00:09]} 20. Bd2 {[%emt 0:03:20]} c4 {[%emt 0:10:37]} 21. Nxe5 {[%emt 0:07:56]} Nxe5 {[%emt 0:00:11]} 22. f4 {[%emt 0:02:01]} Nd3 {[%emt 0:02:01]} 23. Red1 {[%emt 0:07:42]} cxb3 {[%emt 0:02:30]} 24. Rab1 {[%emt 0:11:04]} Bxc3 {[%emt 0:02:19]} 25. Bxc3 {[%emt 0:00:15]} Rxa2+ {[%emt 0:00:11]} 26. Kf3 {[%emt 0:01:24]} Nc5 {[%emt 0:01:51]} 27. e5 {[%emt 0:08:54]} Kf8 {[%emt 0:07:41]} 28. Ke3 {[%emt 0:02:17]} Ke8 {[%emt 0:06:22]} 29. Bd4 {[%emt 0:01:20]} Rc2 {[%emt 0:01:54]} 30. Rdc1 {[%emt 0:01:06]} Rxc1 {[%emt 0:16:30]} 31. Rxc1 {[%emt 0:00:02]} b2 {[%emt 0:00:11]} 32. Rb1 {[%emt 0:00:05]} Rb3+ {[%emt 0:00:10]} 33. Ke2 {[%emt 0:02:32]} Rxg3 {[%emt 0:04:58]} 34. Rxb2 {[%emt 0:00:54]} Rxh3 {[%emt 0:00:53]} 35. Rb8+ {[%emt 0:02:26]} Kd7 {[%emt 0:00:10]} 36. Rf8 {[%emt 0:00:43]} Nd3 {[%emt 0:08:26]} 37. exd6 {[%emt 0:02:22]} Nxf4+ {[%emt 0:00:31]} 38. Kf2 {[%emt 0:00:20]} Kxd6 {[%emt 0:00:55]} 39. Rxf7 {[%emt 0:00:04]} Nxd5 {[%emt 0:00:34]} 40. Rf8 {[%emt 0:00:22]} h5 {[%emt 0:01:10]} 41. Rg8 {[%emt 0:01:04]} Nf4 {[%emt 0:00:07]} 42. Be3 {[%emt 0:00:24]} Nd3+ {[%emt 0:00:42]} 43. Ke2 {[%emt 0:00:27]} Ne5 {[%emt 0:01:30]} 44. Bf4 {[%emt 0:00:11]} Ke6 {[%emt 0:00:57]} 45. Bxe5 {[%emt 0:00:07]} Kxe5 {[%emt 0:00:04]} 46. Rxg6 {[%emt 0:00:05]} e6 {[%emt 0:00:54]} 47. Kf2 {[%emt 0:00:31]} Rh4 {[%emt 0:02:17]} 48. Rh6 {[%emt 0:01:10]} Rf4+ {[%emt 0:03:13]} 49. Kg3 {[%emt 0:01:08]} Rf5 {[%emt 0:00:23]} 50. Kh4 {[%emt 0:00:10]} Kd5 {[%emt 0:02:28]} 51. Rg6 {[%emt 0:00:19]} Rf1 {[%emt 0:06:36]} 52. Rg5+ {[%emt 0:00:27]} Ke4 {[%emt 0:00:52]} 53. Ra5 {[%emt 0:00:58]} Rf4+ {[%emt 0:01:43]} 54. Kh3 {[%emt 0:00:15]} e5 {[%emt 0:00:47]} 55. Ra8 {[%emt 0:00:47]} h4 {[%emt 0:01:10]} 56. Re8 {[%emt 0:00:40]} Kd4 {[%emt 0:00:51]} 57. Rd8+ {[%emt 0:00:26]} Ke3 {[%emt 0:00:18]} 58. Ra8 {[%emt 0:00:37]} Rd4 {[%emt 0:01:30]} 59. Ra3+ {[%emt 0:00:29]} Ke2 {[%emt 0:01:03]} 60. Ra2+ {[%emt 0:00:21]} Rd2 {[%emt 0:00:24]} 61. Ra5 {[%emt 0:00:18]} Rd3+ {[%emt 0:01:03]} 62. Kxh4 {[%emt 0:00:09]} Rd4+ {[%emt 0:01:25]} 63. Kg3 {[%emt 0:00:23]} e4 {[%emt 0:00:42]} 64. Ra2+ {[%emt 0:00:09]} Rd2 {[%emt 0:00:34]} 65. Ra1 {[%emt 0:01:34]} e3 {[%emt 0:00:40]} 66. Kg2 {[%emt 0:00:33]} Rc2 {[%emt 0:02:55]} 67. Rh1 {[%emt 0:00:34]} Kd2 {[%emt 0:00:38]} 68. Kf3 {[%emt 0:00:29]} e2 {[%emt 0:00:36]} 69. Kf2 {[%emt 0:00:24]} Rc7 {[%emt 0:00:32]} 70. Ra1 {[%emt 0:00:39]} Rf7+ {[%emt 0:00:31]} 71. Kg2 {[%emt 0:00:11]} e1=Q {[%emt 0:00:21]} 72. Rxe1 {[%emt 0:00:07]} Kxe1 {[%emt 0:00:11]} 0-1

[Event "ISR-ch Youth 2019"]
[Site "Jerusalem"]
[Date "2019.04.16"]
[Round "7.1"]
[White "Zemach, Roee"]
[Black "Globus, Or"]
[Result "0-1"]
[ECO "B94"]
[WhiteElo "2230"]
[BlackElo "2346"]
[Annotator "ChessBase"]
[PlyCount "104"]
[EventDate "2019.04.11"]
[EventType "swiss"]
[EventCountry "ISR"]
[SourceTitle "playchess.com"]
[Source "ChessBase"]
[SourceQuality "1"]
[TimeControl "5400+30"]

1. e4 {[%emt 0:00:00]} c5 {[%emt 0:00:33]} 2. Nf3 {[%emt 0:00:15]} d6 {[%emt 0:00:38]} 3. d4 {[%emt 0:01:33]} cxd4 {[%emt 0:00:07]} 4. Nxd4 {[%emt 0:01:16]} Nf6 {[%emt 0:00:15]} 5. Nc3 {[%emt 0:00:08]} a6 {[%emt 0:00:04]} 6. Bg5 {[%emt 0:00:44]} Nbd7 {[%emt 0:00:19]} 7. Bc4 {[%emt 0:00:27]} Qb6 {[%emt 0:00:49]} 8. O-O {[%emt 0:01:36]} Qxb2 {[%emt 0:02:07]} 9. Nd5 {[%emt 0:01:20]} Nxd5 {[%emt 0:00:04]} 10. Bxd5 {[%emt 0:03:25]} e6 {[%emt 0:07:16]} 11. Rb1 {[%emt 0:13:55]} Qc3 {[%emt 0:00:11]} 12. Bxb7 {[%emt 0:01:01]} Bxb7 {[%emt 0:00:05]} 13. Rxb7 {[%emt 0:00:08]} Nc5 {[%emt 0:00:07]} 14. Rc7 {[%emt 0:04:49]} Qa5 {[%emt 0:07:27]} 15. Rc6 {[%emt 0:00:41]} Qa4 {[%emt 0:15:52]} 16. Rb6 {[%emt 0:03:39]} Nxe4 {[%emt 0:06:46]} 17. Bh4 {[%emt 0:06:07]} Rc8 {[%emt 0:07:51]} 18. Re1 {[%emt 0:04:20]} Qa5 {[%emt 0:03:10]} 19. Rc6 {[%emt 0:03:57]} Rxc6 {[%emt 0:03:54]} 20. Nxc6 {[%emt 0:00:08]} Qc7 {[%emt 0:04:57]} 21. Rxe4 {[%emt 0:03:06]} Qxc6 {[%emt 0:00:15]} 22. Rb4 {[%emt 0:06:44]} f6 {[%emt 0:00:21]} 23. Rb8+ {[%emt 0:02:53]} Kf7 {[%emt 0:00:21]} 24. Bg3 {[%emt 0:04:15]} d5 {[%emt 0:07:26]} 25. Qb1 {[%emt 0:01:50]} e5 {[%emt 0:01:17]} 26. h4 {[%emt 0:00:57]} Rg8 {[%emt 0:03:14]} 27. Rb6 {[%emt 0:04:07]} Qc4 {[%emt 0:06:06]} 28. Rb7+ {[%emt 0:00:39]} Be7 {[%emt 0:01:43]} 29. Qb6 {[%emt 0:00:15]} Re8 {[%emt 0:01:12]} 30. Qa5 {[%emt 0:03:00]} Kf8 {[%emt 0:03:45]} 31. h5 {[%emt 0:01:48]} Qxc2 {[%emt 0:02:25]} 32. Qxd5 {[%emt 0:03:47]} Rd8 {[%emt 0:01:28]} 33. Rd7 {[%emt 0:00:19]} Rxd7 {[%emt 0:01:02]} 34. Qxd7 {[%emt 0:00:08]} Qxa2 {[%emt 0:01:47]} 35. h6 {[%emt 0:00:35]} gxh6 {[%emt 0:00:30]} 36. Qc8+ {[%emt 0:00:07]} Kf7 {[%emt 0:01:49]} 37. Qf5 {[%emt 0:00:06]} Qd2 {[%emt 0:01:05]} 38. Qxh7+ {[%emt 0:00:31]} Ke6 {[%emt 0:00:29]} 39. Qg8+ {[%emt 0:00:43]} Kd7 {[%emt 0:00:26]} 40. Qg4+ {[%emt 0:02:02]} Kc7 {[%emt 0:00:59]} 41. Qc4+ {[%emt 0:02:36]} Kb6 {[%emt 0:00:12]} 42. Qe6+ {[%emt 0:00:05]} Qd6 {[%emt 0:00:10]} 43. Qb3+ {[%emt 0:00:15]} Kc7 {[%emt 0:00:43]} 44. Qa2 {[%emt 0:01:29]} Kb7 {[%emt 0:01:15]} 45. Qa4 {[%emt 0:01:04]} Qc6 {[%emt 0:04:19]} 46. Qb3+ {[%emt 0:00:25]} Qb5 {[%emt 0:00:24]} 47. Qe6 {[%emt 0:00:12]} Qc5 {[%emt 0:00:20]} 48. Qd7+ {[%emt 0:01:41]} Kb6 {[%emt 0:00:28]} 49. Kh2 {[%emt 0:00:17]} a5 {[%emt 0:00:50]} 50. f3 {[%emt 0:00:07]} Ka6 {[%emt 0:02:01]} 51. Be1 {[%emt 0:00:43]} e4 {[%emt 0:01:18]} 52. Qa4 {[%emt 0:03:30]} Bd6+ {[%emt 0:00:38]} 0-1